bitfinex/quotes_BTCUSD_20251208
["timestamp","ask_amount","ask_price","bid_price","bid_amount"]
[1765211067850,0.03983599,90400.0,90399.0,0.02391766]
[1765211067851,3.48806092,90400.0,90399.0,0.02391766]
[1765211068051,3.26682199,90400.0,90399.0,0.02391766]
[1765211068259,0.21946,90400.0,90399.0,0.24515904]
[1765211068466,1.59409,90400.0,90399.0,0.24515904]
[1765211068644,0.04869,90400.0,90399.0,0.24659191]
[1765211068799,0.001,90401.0,90400.0,0.22123893]
[1765211069010,0.01105998,90416.0,90400.0,0.22123893]
[1765211069011,0.02219599,90421.0,90419.0,0.01105962]
[1765211069221,0.02219599,90421.0,90416.0,0.01105998]
[1765211069222,3.025166,90419.0,90417.0,0.01105986]
[1765211069432,0.9955,90420.0,90419.0,0.22119244]
[1765211069853,3.10029249,90419.0,90417.0,0.01105986]
[1765211070050,3.085726,90418.0,90417.0,0.01105986]
[1765211070290,0.02219599,90412.0,90411.0,0.0110606]
[1765211070608,0.02219599,90412.0,90411.0,0.23227228]
[1765211070812,0.17532599,90412.0,90411.0,0.23227228]
[1765211071576,0.08275599,90412.0,90411.0,0.23227228]
[1765211071775,0.02219599,90412.0,90411.0,0.23227228]
[1765211072085,0.02619599,90412.0,90411.0,0.23227228]
[1765211072451,0.004,90412.0,90411.0,0.23227228]
[1765211072879,0.004,90412.0,90405.0,0.22122346]
[1765211072880,0.02219599,90408.0,90407.0,0.23228172]
[1765211073095,0.02219599,90408.0,90400.0,0.00243286]
[1765211073096,0.02219599,90402.0,90400.0,0.00243286]
[1765211073299,0.06056,90406.0,90404.0,0.22122914]
[1765211073615,0.00044665,90405.0,90404.0,0.23228971]
[1765211074176,0.00044665,90405.0,90404.0,0.01106145]
[1765211074382,0.00044665,90405.0,90400.0,0.00143287]
[1765211074383,0.01106157,90403.0,90400.0,0.00143287]
[1765211074620,0.23229354,90403.0,90400.0,0.00143287]
[1765211074825,0.01106121,90406.0,90401.0,0.01106182]
[1765211075050,0.002,90405.0,90402.0,0.0110617]
[1765211075213,0.2212308,90404.0,90401.0,0.01106182]
[1765211075417,0.002,90405.0,90401.0,0.23229635]
[1765211075592,0.002,90405.0,90402.0,0.23229358]
[1765211075593,0.09457,90405.0,90402.0,0.23229358]
[1765211075798,0.09457,90405.0,90404.0,0.22122914]
[1765211075994,0.002,90405.0,90404.0,0.22122914]
[1765211076303,0.0196,90405.0,90404.0,0.31524354]
[1765211076515,0.0176,90405.0,90404.0,0.31524354]
[1765211076750,0.0176,90405.0,90404.0,0.22266201]
[1765211077097,0.0206,90405.0,90404.0,0.22266201]
[1765211077501,0.0236,90405.0,90404.0,0.22266201]
[1765211078613,0.006,90405.0,90404.0,0.22286201]
[1765211078785,0.006,90405.0,90404.0,0.22276201]
[1765211078996,0.006,90405.0,90404.0,0.31708844]
[1765211079395,0.04869,90414.0,90413.0,0.22120712]
[1765211079620,0.13144599,90414.0,90413.0,0.22120712]
[1765211079821,0.10925,90414.0,90413.0,0.22120712]
[1765211080352,0.09257,90434.0,90433.0,0.2211582]
[1765211080577,0.0789083,90436.0,90433.0,0.2211582]
[1765211080578,0.10110429,90436.0,90435.0,0.22115331]
[1765211080719,0.11870429,90436.0,90435.0,0.22115331]
[1765211081094,0.48143758,90436.0,90435.0,0.22115331]
[1765211081298,0.42087758,90436.0,90435.0,0.22115331]
[1765211081723,0.40327758,90436.0,90435.0,0.22115331]
[1765211081930,0.00136928,90436.0,90435.0,0.22115331]
[1765211082099,0.01896928,90436.0,90435.0,0.22115331]
[1765211082625,0.01896928,90436.0,90435.0,0.22268618]
[1765211082626,0.00636928,90436.0,90435.0,0.22268618]
[1765211082810,0.00136928,90436.0,90435.0,0.22258618]
[1765211083175,0.00536928,90436.0,90435.0,0.31470996]
[1765211083696,0.00136928,90436.0,90435.0,0.31480996]
[1765211084129,0.00236928,90436.0,90435.0,0.31480996]
[1765211084649,0.00136928,90436.0,90435.0,0.31480996]
[1765211084948,0.00136928,90436.0,90435.0,0.31680996]
[1765211085815,0.00136928,90436.0,90435.0,0.31670996]
[1765211085994,0.00136928,90436.0,90435.0,0.22458618]
[1765211085995,0.15730928,90436.0,90435.0,0.22458618]
[1765211086193,0.15730928,90436.0,90435.0,0.22315331]
[1765211087046,0.48230928,90436.0,90435.0,0.22315331]
[1765211087607,0.48230928,90436.0,90435.0,0.22115331]
[1765211087810,0.48430928,90436.0,90435.0,0.22115331]
[1765211088681,0.48430928,90436.0,90430.0,0.22216439]
[1765211088682,0.01105827,90430.0,90424.0,0.22117792]
[1765211088967,0.01105827,90430.0,90424.0,0.23223693]
[1765211088968,0.02219599,90425.0,90424.0,0.23223693]
[1765211089285,0.02219599,90424.0,90423.0,0.23224115]
[1765211089503,0.17813599,90424.0,90423.0,0.23224115]
[1765211089701,0.0176,90425.0,90424.0,0.22118021]
[1765211090694,0.06548,90425.0,90424.0,0.22118021]
[1765211090897,0.14816599,90425.0,90424.0,0.22118021]
[1765211091074,0.22142,90425.0,90424.0,0.22118021]
[1765211091697,0.02219599,90422.0,90421.0,0.2322459]
[1765211092029,0.02219599,90422.0,90402.0,0.0294057]
[1765211092030,0.01105962,90419.0,90414.0,0.23226486]
[1765211092234,0.01105962,90419.0,90415.0,0.01106011]
[1765211092467,0.09545,90418.0,90417.0,0.22119643]
[1765211092624,0.09545,90418.0,90417.0,0.22119734]
[1765211092846,0.15594,90418.0,90417.0,0.22119734]
[1765211093056,0.06948,90425.0,90421.0,0.23224473]
[1765211093057,0.323,90424.0,90421.0,0.23224473]
[1765211093282,0.323,90424.0,90423.0,0.22118266]
[1765211093507,0.55524161,90424.0,90419.0,0.23225206]
[1765211093710,0.06049,90422.0,90421.0,0.22118755]
[1765211094167,0.40058085,90425.0,90423.0,0.22118187]
[1765211094368,0.38848,90425.0,90423.0,0.22118187]
[1765211094579,0.06449,90424.0,90423.0,0.2211824]
[1765211094780,0.15594,90424.0,90423.0,0.2211824]
[1765211095255,0.15894,90424.0,90423.0,0.2211824]
[1765211095717,0.15594,90424.0,90423.0,0.2211824]
[1765211095929,0.15894,90424.0,90423.0,0.2211824]
[1765211096729,0.01105986,90417.0,90408.0,0.01106096]
[1765211096897,0.01105986,90417.0,90391.0,0.44251823]
[1765211096898,0.28169223,90415.0,90411.0,0.0110606]
[1765211097119,0.30388822,90415.0,90410.0,0.00099999]
[1765211097353,0.39933822,90415.0,90410.0,0.01206071]
[1765211098026,0.39933822,90415.0,90411.0,0.0110606]
[1765211098499,0.40033822,90415.0,90411.0,0.0110606]
[1765211098647,0.40033822,90415.0,90412.0,0.22120732]
[1765211098967,0.40233822,90415.0,90411.0,0.23227255]
[1765211099296,0.40233822,90415.0,90414.0,0.24880533]
[1765211099297,0.003,90415.0,90414.0,0.24880533]
[1765211099896,0.003,90415.0,90414.0,0.22312696]
[1765211100305,0.002,90415.0,90414.0,0.22302696]
[1765211100531,0.002,90415.0,90414.0,0.22502696]
[1765211100729,0.002,90415.0,90414.0,0.00238941]
[1765211100730,0.17134,90415.0,90414.0,0.00238941]
[1765211100962,3.21670199,90415.0,90414.0,0.00038941]
[1765211101186,3.21670199,90415.0,90414.0,0.00138941]
[1765211101386,3.21670199,90415.0,90395.0,0.0294057]
[1765211101387,3.21670199,90415.0,90395.0,0.01106255]
[1765211101388,0.5751,90398.0,90395.0,0.01106255]
[1765211101601,3.042766,90397.0,90395.0,0.01117942]
[1765211101720,3.131146,90396.0,90395.0,0.01117942]
[1765211101922,3.222176,90396.0,90395.0,0.01117942]
[1765211102128,3.222176,90396.0,90395.0,0.00011687]
[1765211102557,3.24437199,90396.0,90395.0,0.00011687]
[1765211104021,3.24637199,90396.0,90395.0,0.00011687]
[1765211104579,3.57137199,90396.0,90395.0,0.00011687]
[1765211104778,3.56937199,90396.0,90395.0,0.00011687]
[1765211104948,3.56937199,90396.0,90373.0,0.01106525]
[1765211104950,3.56937199,90396.0,90375.0,0.0294057]
[1765211104951,3.04736199,90376.0,90375.0,0.0294057]
[1765211105105,3.04736199,90376.0,90373.0,0.01106525]
[1765211105106,0.02219599,90375.0,90374.0,0.23236636]
[1765211105309,0.11322599,90375.0,90374.0,0.23236636]
[1765211105867,0.17393599,90375.0,90374.0,0.23236636]
[1765211106074,0.17393599,90375.0,90372.0,0.04047107]
[1765211106274,0.17393599,90375.0,90368.0,0.0294057]
[1765211106275,0.54430993,90371.0,90368.0,0.0294057]
[1765211106436,0.54430993,90371.0,90362.0,0.03943235]
[1765211106437,0.22132952,90363.0,90362.0,0.0294057]
[1765211106603,0.34490952,90363.0,90362.0,0.0294057]
[1765211106807,0.34490952,90363.0,90361.0,0.25073926]
[1765211106808,0.21461,90363.0,90361.0,0.25073926]
[1765211107024,0.09103,90362.0,90361.0,0.25085626]
[1765211107229,0.15174,90362.0,90361.0,0.25085626]
[1765211107446,0.15174,90362.0,90361.0,0.0295227]
[1765211107845,0.15174,90362.0,90361.0,0.000117]
[1765211108055,0.17393599,90362.0,90361.0,0.000117]
[1765211108457,3.19910199,90362.0,90361.0,0.000117]
[1765211108659,3.20010199,90362.0,90361.0,0.000117]
[1765211109304,3.52410199,90362.0,90361.0,0.000117]
[1765211109507,3.52310199,90362.0,90361.0,0.000117]
[1765211109946,3.52610199,90362.0,90361.0,0.000117]
[1765211110064,3.52210199,90362.0,90361.0,0.000117]
[1765211110511,3.53010199,90362.0,90361.0,0.000117]
[1765211110685,3.52310199,90362.0,90361.0,0.000117]
[1765211110886,3.52210199,90362.0,90361.0,0.000117]
[1765211111114,3.52210199,90362.0,90338.0,0.01106953]
[1765211111115,3.37036199,90343.0,90342.0,0.0294057]
[1765211111325,3.37036199,90343.0,90335.0,0.01]
[1765211111326,3.10807199,90336.0,90335.0,0.01]
[1765211111799,0.73764,90336.0,90335.0,0.0394057]
[1765211112004,0.73764,90336.0,90335.0,0.01]
[1765211112260,1.08283599,90336.0,90335.0,0.01]
[1765211112539,3.52210199,90336.0,90335.0,0.01]
[1765211113150,3.52610199,90336.0,90335.0,0.01]
[1765211113512,3.52210199,90336.0,90335.0,0.01]
[1765211113714,3.53010199,90336.0,90335.0,0.01]
[1765211114189,3.52810199,90336.0,90335.0,0.01]
[1765211114331,3.52210199,90336.0,90335.0,0.01]
[1765211114548,3.52510199,90336.0,90335.0,0.01]
[1765211114970,3.52210199,90336.0,90335.0,0.01]
[1765211115354,3.52510199,90336.0,90335.0,0.01]
[1765211116198,3.53110199,90336.0,90335.0,0.01]
[1765211116708,3.52210199,90336.0,90335.0,0.01]
[1765211116846,3.53310199,90336.0,90335.0,0.011]
[1765211117660,3.53310199,90336.0,90317.0,0.01107211]
[1765211117661,3.04736199,90318.0,90317.0,0.0294057]
[1765211117887,3.04736199,90318.0,90316.0,0.0294057]
[1765211117888,3.26880424,90317.0,90316.0,0.0294057]
[1765211118108,3.20871199,90317.0,90316.0,0.0294057]
[1765211118311,3.20871199,90317.0,90314.0,0.0294057]
[1765211118522,3.20871199,90317.0,90312.0,0.22145411]
[1765211118523,0.02219599,90314.0,90313.0,0.0294057]
[1765211118677,3.04736199,90314.0,90313.0,0.0294057]
[1765211118877,3.20871199,90314.0,90313.0,0.0294057]
[1765211119329,0.02219599,90313.0,90312.0,0.25085867]
[1765211119532,0.18354599,90313.0,90312.0,0.25085867]
[1765211119743,0.08719188,90313.0,90312.0,0.22145297]
[1765211119919,0.18363188,90313.0,90312.0,0.25076434]
[1765211120388,0.18363188,90313.0,90312.0,0.22145297]
[1765211120586,0.18463188,90313.0,90312.0,0.25076434]
[1765211120848,0.18563188,90313.0,90312.0,0.25076434]
[1765211121336,0.00208589,90313.0,90312.0,0.25076434]
[1765211122166,0.00208589,90313.0,90310.0,0.0004]
[1765211122167,3.24662296,90311.0,90310.0,0.0004]
[1765211122386,2.97400295,90311.0,90310.0,0.0004]
[1765211122586,0.69935,90311.0,90310.0,0.22185941]
[1765211122721,0.73914599,90311.0,90310.0,0.22185941]
[1765211122925,0.323,90301.0,90290.0,0.00139999]
[1765211123148,0.41944,90310.0,90290.0,0.0004]
[1765211123149,0.09413505,90293.0,90290.0,0.0004]
[1765211123346,0.06491,90291.0,90290.0,0.0004]
[1765211123563,0.08710599,90291.0,90290.0,0.0004]
[1765211123764,0.06491,90291.0,90290.0,0.00183287]
[1765211123964,0.04034599,90293.0,90291.0,0.22150601]
[1765211124169,0.09644,90292.0,90291.0,0.22150601]
[1765211124344,0.09644,90292.0,90290.0,0.00183287]
[1765211124345,0.38285511,90292.0,90290.0,0.00183287]
[1765211124670,0.08710599,90291.0,90290.0,0.00183287]
[1765211124886,0.18354599,90291.0,90290.0,0.00183287]
[1765211125288,3.2206893,90291.0,90290.0,0.0004]
[1765211125498,3.18664599,90291.0,90290.0,0.0004]
[1765211125697,1.11025,90291.0,90290.0,0.0004]
[1765211126192,3.20871199,90291.0,90290.0,0.0004]
[1765211126570,3.53571199,90291.0,90290.0,0.0004]
[1765211126756,3.53371199,90291.0,90290.0,0.0004]
[1765211126953,3.53171199,90291.0,90290.0,0.0004]
[1765211127153,3.53471199,90291.0,90290.0,0.0004]
[1765211127353,0.34264,90291.0,90290.0,0.22190847]
[1765211127747,0.34064,90291.0,90290.0,0.22190847]
[1765211127948,0.40555,90291.0,90290.0,0.22190847]
[1765211128181,0.40855,90291.0,90290.0,0.22190847]
[1765211129192,0.41355,90291.0,90290.0,0.22190847]
[1765211129378,0.41355,90291.0,90290.0,0.22334134]
[1765211129379,0.005,90291.0,90290.0,0.22334134]
[1765211129578,0.01764,90296.0,90295.0,0.2214962]
[1765211129791,0.01764,90296.0,90294.0,0.22149845]
[1765211130030,0.06491,90295.0,90294.0,0.22149845]
[1765211131307,0.003,90296.0,90294.0,0.26425132]
[1765211131507,0.003,90296.0,90294.0,0.22293132]
[1765211131933,0.08710599,90295.0,90294.0,0.22293132]
[1765211132363,0.04669,90299.0,90298.0,0.22148884]
[1765211132503,0.20804,90299.0,90296.0,0.23256843]
[1765211132705,0.06491,90297.0,90296.0,0.23256843]
[1765211134534,0.002,90297.0,90296.0,0.23256843]
[1765211135160,0.06691,90297.0,90296.0,0.23256843]
[1765211135364,0.16335,90297.0,90296.0,0.23256843]
[1765211135567,0.06891,90297.0,90296.0,0.23256843]
[1765211135761,0.06691,90297.0,90296.0,0.23256843]
[1765211135969,0.06491,90297.0,90296.0,0.23256843]
[1765211136341,0.001,90297.0,90296.0,0.35542496]
[1765211136588,0.001,90297.0,90296.0,0.2753213]
[1765211136784,0.01764,90298.0,90297.0,0.2214913]
[1765211137020,8.589e-05,90313.0,90304.0,0.0110737]
[1765211137209,8.589e-05,90313.0,90312.0,0.26277451]
[1765211139307,0.00508589,90313.0,90312.0,0.26277451]
[1765211139509,0.00208589,90313.0,90312.0,0.26420738]
[1765211139716,8.589e-05,90313.0,90312.0,0.26420738]
[1765211139874,8.589e-05,90313.0,90312.0,0.26520738]
[1765211140073,8.589e-05,90313.0,90312.0,0.26420738]
[1765211141165,0.06499589,90313.0,90312.0,0.22288738]
[1765211141322,0.18363188,90313.0,90312.0,0.22288738]
[1765211141769,0.16143589,90313.0,90312.0,0.22288738]
[1765211142511,0.06699589,90313.0,90312.0,0.22288738]
[1765211142954,0.06599589,90313.0,90312.0,0.22288738]
[1765211143352,0.00208589,90313.0,90312.0,0.22288738]
[1765211144743,0.01244593,90313.0,90312.0,0.22288738]
[1765211144948,0.01244593,90313.0,90312.0,0.39757668]
[1765211145123,0.01244593,90313.0,90312.0,0.35625668]
[1765211145319,0.01144593,90313.0,90312.0,0.35625668]
[1765211145769,0.01044593,90313.0,90312.0,0.35825668]
[1765211146003,8.589e-05,90313.0,90312.0,0.35925668]
[1765211147641,8.589e-05,90313.0,90312.0,0.26720738]
[1765211148291,8.589e-05,90313.0,90312.0,0.30852738]
[1765211148965,8.589e-05,90313.0,90312.0,0.22588738]
[1765211149349,0.06290589,90313.0,90312.0,0.22588738]
[1765211149510,0.15459589,90313.0,90312.0,0.22588738]
[1765211149942,0.15459589,90313.0,90312.0,0.22388738]
[1765211150139,0.06290589,90313.0,90312.0,0.22288738]
[1765211150347,8.589e-05,90313.0,90312.0,0.22388738]
[1765211150545,8.589e-05,90313.0,90312.0,0.22288738]
[1765211151576,8.589e-05,90313.0,90312.0,0.22388738]
[1765211151718,0.06290589,90313.0,90312.0,0.22388738]
[1765211151928,8.589e-05,90313.0,90312.0,0.33997811]
[1765211152749,8.589e-05,90313.0,90312.0,0.22288738]
[1765211152954,8.589e-05,90313.0,90312.0,0.22388738]
[1765211153233,8.589e-05,90313.0,90312.0,0.22488738]
[1765211154052,8.589e-05,90313.0,90312.0,0.26620738]
[1765211155636,8.589e-05,90313.0,90312.0,0.22488738]
[1765211159317,8.589e-05,90313.0,90312.0,0.39977668]
[1765211159701,0.06290589,90313.0,90312.0,0.22488738]
[1765211160487,8.589e-05,90313.0,90312.0,0.22488738]
[1765211161083,0.37604795,90313.0,90312.0,0.002]
[1765211161290,3.20195788,90313.0,90312.0,0.002]
[1765211161491,3.20195788,90313.0,90312.0,0.22345451]
[1765211161492,8.589e-05,90313.0,90312.0,0.22345451]
[1765211161695,8.589e-05,90313.0,90312.0,0.22145451]
[1765211162256,0.00208589,90313.0,90312.0,0.22145451]
[1765211162466,0.00208589,90313.0,90308.0,0.22146289]
[1765211162467,0.221466,90308.0,90303.0,0.01107382]
[1765211162663,0.23253974,90308.0,90303.0,0.01107382]
[1765211162873,0.06282,90304.0,90303.0,0.01107382]
[1765211163067,0.06282,90304.0,90303.0,0.2325504]
[1765211163246,0.01107272,90312.0,90311.0,0.22145649]
[1765211163247,0.02219599,90312.0,90311.0,0.22145649]
[1765211163472,0.02219599,90312.0,90310.0,0.23252785]
[1765211163473,0.15451,90312.0,90310.0,0.23252785]
[1765211163659,0.15451,90312.0,90307.0,0.01107333]
[1765211163660,0.08501599,90311.0,90307.0,0.01107333]
[1765211163861,0.06282,90308.0,90307.0,0.22146677]
[1765211164355,0.15451,90308.0,90307.0,0.22146677]
[1765211164562,0.15451,90308.0,90305.0,0.01107358]
[1765211164781,0.09137,90307.0,90306.0,0.22146828]
[1765211165161,0.15419,90307.0,90306.0,0.22146828]
[1765211165362,0.15419,90307.0,90306.0,0.22146922]
[1765211165765,0.15419,90307.0,90304.0,0.23254641]
[1765211165980,0.15419,90307.0,90303.0,0.01107382]
[1765211165981,0.06282,90305.0,90302.0,0.01107395]
[1765211166181,0.06282,90305.0,90299.0,0.22148402]
[1765211166182,0.0628,90301.0,90299.0,0.23255833]
[1765211166495,0.06025,90300.0,90299.0,0.23255833]
[1765211167858,0.06025,90300.0,90299.0,0.23355833]
[1765211168059,0.08244599,90300.0,90299.0,0.23355833]
[1765211168356,0.15075,90300.0,90299.0,0.01207431]
[1765211168563,0.17294599,90300.0,90299.0,0.2345607]
[1765211169163,0.17294599,90300.0,90299.0,0.2335607]
[1765211169442,0.39442993,90300.0,90299.0,0.001]
[1765211169659,0.39442993,90300.0,90299.0,0.002]
[1765211169660,3.41959593,90300.0,90299.0,0.002]
[1765211169834,3.41959593,90300.0,90299.0,0.001]
[1765211170193,0.02219599,90295.0,90294.0,0.23257358]
[1765211170394,0.08287599,90295.0,90294.0,0.23257358]
[1765211170612,0.17337599,90295.0,90294.0,0.23257358]
[1765211171884,0.04999,90301.0,90300.0,0.22148394]
[1765211172087,0.3406,90309.0,90308.0,0.01107321]
[1765211172339,0.3406,90309.0,90308.0,0.23253695]
[1765211172340,1.18374995,90309.0,90308.0,0.23253695]
[1765211172747,1.24658995,90309.0,90308.0,0.23253695]
[1765211173164,0.323,90306.0,90304.0,0.0110737]
[1765211173369,0.323,90306.0,90305.0,0.22147167]
[1765211173574,0.33335447,90306.0,90305.0,0.22147167]
[1765211173755,0.39619447,90306.0,90304.0,0.0110737]
[1765211173967,0.06284,90305.0,90304.0,0.23254783]
[1765211175037,0.50241599,90305.0,90304.0,0.22147413]
[1765211175404,0.50341599,90305.0,90304.0,0.22147413]
[1765211175808,0.50341599,90305.0,90302.0,0.01107395]
[1765211175809,0.48122,90305.0,90302.0,0.01107395]
[1765211176059,0.08503599,90303.0,90302.0,0.23255158]
[1765211176561,3.20458199,90303.0,90302.0,0.23255158]
[1765211176762,1.98181599,90303.0,90302.0,0.23255158]
[1765211176908,1.98181599,90303.0,90300.0,0.23255634]
[1765211176909,2.7246,90302.0,90300.0,0.23255799]
[1765211177110,2.7246,90302.0,90290.0,0.22290677]
[1765211177111,3.025166,90300.0,90290.0,0.00139999]
[1765211177355,0.08753006,90301.0,90290.0,0.00139999]
[1765211177356,0.02219599,90292.0,90291.0,0.0110753]
[1765211177514,0.02219599,90292.0,90291.0,0.23257986]
[1765211177719,0.22503599,90292.0,90291.0,0.23257986]
[1765211178345,0.22503599,90292.0,90291.0,0.0110753]
[1765211178594,0.22503599,90292.0,90291.0,0.23258131]
[1765211178982,0.02219599,90291.0,90290.0,0.0004]
[1765211179186,0.17516599,90291.0,90290.0,0.0004]
[1765211179677,0.396672,90291.0,90290.0,0.0004]
[1765211179992,3.20033199,90291.0,90290.0,0.0004]
[1765211180343,3.744838,90291.0,90290.0,0.0004]
[1765211180896,3.746838,90291.0,90290.0,0.0004]
[1765211181096,3.748838,90291.0,90290.0,0.0004]
[1765211181859,3.82170907,90291.0,90290.0,0.0004]
[1765211182067,3.82170907,90291.0,90270.0,0.0004]
[1765211182068,3.26891708,90271.0,90270.0,0.0004]
[1765211182284,3.39492708,90271.0,90270.0,0.0004]
[1765211182414,1.74304108,90271.0,90270.0,0.0004]
[1765211182622,1.71344108,90271.0,90270.0,0.0004]
[1765211182844,2.60964108,90271.0,90270.0,0.0004]
[1765211183277,2.60964108,90271.0,90270.0,0.00079004]
[1765211183712,2.61164108,90271.0,90270.0,0.00079004]
[1765211183912,3.49130708,90271.0,90270.0,0.00079004]
[1765211184214,3.49330708,90271.0,90270.0,0.00079004]
[1765211184556,2.88164108,90271.0,90270.0,0.00079004]
[1765211185002,3.49330708,90271.0,90270.0,0.00079004]
[1765211185820,2.37778599,90271.0,90270.0,0.00079004]
[1765211186043,2.60364108,90271.0,90270.0,0.00079004]
[1765211186844,2.38208599,90271.0,90270.0,0.00079004]
[1765211187193,0.0216,90271.0,90270.0,0.22234758]
[1765211188108,0.08444,90271.0,90270.0,0.22234758]
[1765211188316,0.004,90271.0,90270.0,0.26510045]
[1765211188543,0.004,90271.0,90270.0,0.4049393]
[1765211189319,0.002,90271.0,90270.0,0.4049393]
[1765211189693,0.003,90271.0,90270.0,0.22378045]
[1765211189894,0.06384,90271.0,90270.0,0.22378045]
[1765211190212,0.06384,90271.0,90270.0,0.00222291]
[1765211190421,0.08603599,90271.0,90270.0,0.22378045]
[1765211190588,0.001,90271.0,90270.0,0.22378045]
[1765211190805,0.001,90271.0,90270.0,0.26510045]
[1765211191013,0.001,90271.0,90270.0,0.33869897]
[1765211191130,0.001,90271.0,90270.0,0.30642045]
[1765211191330,0.001,90271.0,90270.0,0.26510045]
[1765211191781,0.001,90271.0,90270.0,0.30642045]
[1765211192488,0.001,90271.0,90270.0,0.62942045]
[1765211192705,0.0176,90286.0,90285.0,0.22152073]
[1765211193101,0.0176,90286.0,90285.0,0.2229536]
[1765211193255,1.74979599,90296.0,90295.0,0.2214962]
[1765211193681,1.54694,90296.0,90295.0,0.2214962]
[1765211193879,1.06634,90296.0,90295.0,0.2214962]
[1765211194087,1.0035,90296.0,90295.0,0.2214962]
[1765211194275,0.0176,90297.0,90296.0,0.22149375]
[1765211194477,0.47744459,90305.0,90304.0,0.22147413]
[1765211194679,0.44018459,90305.0,90304.0,0.22147413]
[1765211195160,0.40758459,90305.0,90304.0,0.22147413]
[1765211195298,0.39708459,90305.0,90304.0,0.22147413]
[1765211195501,3.07238459,90305.0,90304.0,0.22147413]
[1765211195710,3.07238459,90305.0,90302.0,0.01107395]
[1765211195711,2.3636,90304.0,90302.0,0.01107395]
[1765211195894,3.09835258,90303.0,90302.0,0.23255083]
[1765211196101,0.71856658,90303.0,90302.0,0.23255083]
[1765211196304,0.71856861,90303.0,90302.0,0.23255083]
[1765211196603,0.72056861,90303.0,90302.0,0.23255083]
[1765211197005,0.72256861,90303.0,90302.0,0.23255083]
[1765211197270,0.33516861,90303.0,90302.0,0.23255083]
[1765211197419,0.23044,90303.0,90302.0,0.23255083]
[1765211197631,1.50784,90303.0,90302.0,0.23255083]
[1765211197852,1.27324,90303.0,90302.0,0.23255083]
[1765211198280,1.3799729,90303.0,90302.0,0.23255083]
[1765211198510,0.002,90303.0,90302.0,0.2339837]
[1765211198703,0.0001165,90305.0,90304.0,0.22147413]
[1765211199111,0.0001165,90305.0,90304.0,0.222907]
[1765211199315,0.0001165,90305.0,90304.0,0.264227]
[1765211199544,0.0001165,90305.0,90304.0,0.305547]
[1765211199719,0.0001165,90305.0,90304.0,0.264227]
[1765211199955,0.0011165,90305.0,90304.0,0.264227]
[1765211200162,0.0011165,90305.0,90304.0,0.36464834]
[1765211200903,0.0011165,90305.0,90304.0,0.40596834]
[1765211201506,0.0001165,90305.0,90304.0,0.40596834]
[1765211201908,0.0001165,90305.0,90304.0,0.40796834]
[1765211202111,0.0001165,90305.0,90304.0,0.32532834]
[1765211202318,0.0001165,90305.0,90304.0,0.224907]
[1765211202658,0.0001165,90305.0,90304.0,0.307547]
[1765211202833,0.0001165,90305.0,90304.0,0.310547]
[1765211203016,0.0001165,90305.0,90304.0,0.305547]
[1765211203797,0.0001165,90305.0,90304.0,0.307547]
[1765211204039,0.0001165,90305.0,90304.0,0.43434834]
[1765211204199,0.0001165,90305.0,90304.0,0.43334834]
[1765211204404,0.0001165,90305.0,90304.0,0.43834834]
[1765211204607,0.0001165,90305.0,90304.0,0.41514834]
[1765211204818,0.17497295,90353.0,90346.0,0.01106855]
[1765211204819,1.2029,90348.0,90346.0,0.01106855]
[1765211205021,3.03550222,90347.0,90346.0,0.23243854]
[1765211205267,2.02583622,90347.0,90346.0,0.23243854]
[1765211205476,0.34783221,90347.0,90346.0,0.23243854]
[1765211205703,0.32311687,90348.0,90346.0,0.23243854]
[1765211205704,0.00011687,90348.0,90346.0,0.27519141]
[1765211206563,0.004,90347.0,90346.0,0.27519141]
[1765211206772,0.004,90347.0,90346.0,0.23387141]
[1765211206891,0.00011687,90348.0,90346.0,0.23387141]
[1765211207101,0.00011687,90348.0,90346.0,0.23587141]
[1765211207528,0.00011687,90348.0,90346.0,0.23387141]
[1765211207722,0.00011687,90348.0,90347.0,0.05071208]
[1765211207958,0.00011687,90348.0,90347.0,0.04132]
[1765211208609,0.00011687,90348.0,90347.0,0.04275287]
[1765211208837,0.00011687,90348.0,90347.0,0.04375287]
[1765211209793,0.00011687,90348.0,90347.0,0.08707287]
[1765211211595,0.00011687,90348.0,90347.0,0.08607287]
[1765211211792,0.00011687,90348.0,90347.0,0.19455215]
[1765211212152,0.00011687,90348.0,90347.0,0.19955215]
[1765211214362,0.00011687,90348.0,90347.0,0.42092087]
[1765211215347,0.00011687,90348.0,90347.0,0.22980159]
[1765211215555,0.00011687,90348.0,90347.0,0.31244159]
[1765211216232,0.00011687,90348.0,90347.0,0.30544159]
[1765211216681,0.00111687,90348.0,90347.0,0.30544159]
[1765211217085,0.00011687,90348.0,90347.0,0.30844159]
[1765211217284,0.00011687,90348.0,90347.0,0.41792087]
[1765211217825,0.00011687,90348.0,90347.0,0.41692087]
[1765211218251,0.00011687,90348.0,90347.0,0.41592087]
[1765211218463,0.00011687,90348.0,90347.0,0.41992087]
[1765211219186,0.00011687,90348.0,90347.0,0.44212087]
[1765211219386,0.00011687,90348.0,90347.0,0.41992087]
[1765211219607,0.00011687,90348.0,90347.0,0.43752087]
[1765211220019,0.00011687,90348.0,90347.0,0.37860087]
[1765211220226,0.00011687,90348.0,90347.0,0.22880159]
[1765211220430,0.00011687,90348.0,90347.0,0.26812159]
[1765211220632,0.00011687,90348.0,90347.0,0.22680159]
[1765211220834,0.00011687,90348.0,90347.0,0.22780159]
[1765211221035,0.00011687,90348.0,90347.0,0.22236872]
[1765211221036,0.06391687,90348.0,90347.0,0.22236872]
[1765211221344,0.06391687,90348.0,90347.0,0.001]
[1765211221345,3.42514513,90348.0,90347.0,0.001]
[1765211221544,3.42514513,90348.0,90347.0,0.004]
[1765211221764,3.42514513,90348.0,90347.0,0.001]
[1765211221971,3.43545085,90348.0,90347.0,0.001]
[1765211222185,3.77042816,90348.0,90347.0,0.003]
[1765211222373,3.82097384,90348.0,90347.0,0.001]
[1765211222624,0.02219599,90318.0,90317.0,0.01107211]
[1765211222822,0.02219599,90318.0,90316.0,0.22144347]
[1765211222823,0.11308,90317.0,90316.0,0.22144347]
[1765211223023,1.632,90326.0,90323.0,0.23249675]
[1765211223201,1.7092,90326.0,90325.0,0.22142264]
[1765211223406,1.7092,90326.0,90318.0,0.01107199]
[1765211223407,0.02219599,90320.0,90317.0,0.01107211]
[1765211223638,0.02219599,90320.0,90219.0,0.05568627]
[1765211223639,0.07476199,90318.0,90311.0,0.01107284]
[1765211223877,0.07476199,90318.0,90311.0,0.00039004]
[1765211223878,0.02219599,90312.0,90311.0,0.00039004]
[1765211224096,0.11469599,90312.0,90311.0,0.00039004]
[1765211224317,0.22812599,90312.0,90311.0,0.00039004]
[1765211225019,0.13562599,90312.0,90311.0,0.00039004]